Workbook

Sheet Calcul du K
D1: "Niveau K" et bilan énergétique d'un bâtiment | AF1: K<=20 + non | AG1: K<=20 + oui | AH1: K>20 + non | AI1: K>20 + oui
D2: - encodez les données relatives à votre situation dans les cases bleues. | Z2: montant travaux | AE2: subventions
D3: - les résultats sont repris dans les cases jaunes. | Z3: Plafond/Plancher comble | AA3: 34.48 | AE3: Plafond/Plancher comble | AF3: =ROUND(AA3*$AB$31,0) -> 26 | AG3: =ROUND(AA3*$AB$30,0) -> 28 | AH3: =ROUND(AA3*$AB$33,0) -> 17 | AI3: =ROUND(AA3*$AB$32,0) -> 19
Z4: Toiture en pente dans la structure | AA4: 71.73 | AE4: Toiture en pente dans la structure | AF4: 54 | AG4: 57 | AH4: 36 | AI4: 39
C5: Si vous ne connaissez pas les caractéristiques thermiques exactes de vos parois, vous pouvez accéder | Z5: Sarking | AA5: 140 | AE5: Sarking | AF5: 105 | AG5: 112 | AH5: 70 | AI5: 77
C6: à un catalogue de parois types et de leur coefficient de transmission thermique k, en cliquant ici : | Z6: Toiture plate | AA6: 117.91 | AE6: Toiture plate | AF6: 88 | AG6: 94 | AH6: 59 | AI6: 65
Z7: Isolation des murs | AA7: 79.54 | AE7: Isolation des murs | AF7: 60 | AG7: 64 | AH7: 40 | AI7: 44
Z8: Isolation du sol | AA8: 32.32 | AE8: Isolation du sol | AF8: 24 | AG8: 26 | AH8: 16 | AI8: 18
Z9: menuiseries extérieures | AA9: 450 | AE9: menuiseries extérieures | AF9: =ROUND(AA9*$AB$31,0) -> 338 | AG9: =ROUND(AA9*$AB$30,0) -> 360 | AH9: 225 | AI9: =ROUND(AA9*$AB$32,0) -> 248
C11: Dénomination du bâtiment :
C12: Adresse du bâtiment : | AE12: niveau K | AF12: =IF(J124<=20,Z30,Z32) -> K<=20
C15: /!\ Afin de pouvoir déterminer le niveau K du bâtiment après travaux, l’ensemble des surfaces de déperdition de l’enveloppe du bâtiment devront être encodées même si certaines parois ne sont pas modifiées thermiquement (c'est à dire isolées ou remplacées en cas de menuiseries).
C17: Travaux éligibles – Exigences
C18: 1) Amélioration de l'enveloppe :
C19: a) Rremplacement des menuiseries extérieurs :
C20: Coefficient de transmission thermique de l'ensemble châssis et vitrage : Uw ≤ 1.5 W/m²K
C21: b) Coefficient de résistance thermique R de l'isolant ajouté :
C22: Isolation du toit : R ≥ 6 m²K/W
C23: Isolation des murs : R ≥ 6 m²K/W
C24: Isolation des sols : R ≥ 4 m²K/W
C25: 2) Placement d'un système de ventilation :
C26: Débit ≥ 36m³/h par personne
C27: Système de régulation de type INT-C6
B29: 1° | C29: Calcul du niveau d'isolation thermique globale "K" d'un bâtiment, suivant NBN B62-301 | Z29: K | AA29: biosourcé
C30: Attention: cette méthode de calcul ne correspond pas à la méthode réglementaire actuelle. Elle présente une approche simplifiée concernant les déperditions par le sol et vers les espaces adjacents non chauffés. | Z30: K<=20 | AA30: oui | AB30: 0.8
M31: parois modifiées | O31: contrôle U chassis | P31: Avertissement U | Q31: oublie isolant | R31: surface modifié correctement | Z31: K<=20 | AA31: non | AB31: 0.75
C32: Parois de la superficie de déperdition thermique | D32: Uj [W/(m².K)] | E32: Aj [m²] | F32: Parois modifiées | G32: Châssis / Isolant Biosourcé | H32: Montant de subvention | I32: Uj . Aj [W/K] | J32: S U j . Aj [W/K] | K32: aj | L32: S aj . Uj .Aj [W/K] | O32: =IF(SUM(O33:O41)>=1,1,0) -> 0 | P32: =IF(SUM(P33:P87)>=1,1,0) -> 0 | Q32: =IF(SUM(Q33:Q87)>=1,1,0) -> 0 | Z32: K>20 | AA32: oui | AB32: 0.55
B33: 1 | C33: Fenêtres, tabatières, coupoles et autres parois translucides, portes extérieures | F33: FALSE | H33: =IF(OR(G33="",F33=FALSE),"",HLOOKUP(N33,$AE$1:$AI$9,9,1)*E33*(1-O33)) ->  | I33: =D33*E33 -> 0.0 | J33: =SUM(I33:I37) -> 0.0 | K33: 1 | L33: =+K33*J33 -> 0.0 | M33: =IF(F33=TRUE,1,0) -> 0 | N33: =$AF$12&" "&"+"&" "&G33 -> K<=20 + | O33: =IF(AND(D33>1.5,M33=1),1,0) -> 0 | P33: =IF(D33="",0,IF(OR(D33>6,D33<0.7),1,0)) -> 0 | Q33: =IF(AND(D33<>"",E33<>"",F33=TRUE,G33=""),1*$Q$30,0) -> 0 | R33: =E33*(1-O33)*M33 -> 0 | V33: oui | Z33: K>20 | AA33: non | AB33: 0.5
F34: FALSE | H34: =IF(OR(G34="",F34=FALSE),"",HLOOKUP(N34,$AE$1:$AI$9,9,1)*E34*(1-O34)) ->  | I34: 0.0 | M34: =IF(F34=TRUE,1,0) -> 0 | N34: K<=20 + | O34: =IF(AND(D34>1.5,M34=1),1,0) -> 0 | P34: =IF(D34="",0,IF(OR(D34>6,D34<0.7),1,0)) -> 0 | Q34: =IF(AND(D34<>"",E34<>"",F34=TRUE,G34=""),1*$Q$30,0) -> 0 | R34: =E34*(1-O34)*M34 -> 0 | V34: non
F35: FALSE | I35: 0.0 | M35: =IF(F35=TRUE,1,0) -> 0 | N35: K<=20 + | O35: 0 | P35: 0 | Q35: 0 | R35: 0
F36: FALSE | I36: =D36*E36 -> 0.0 | M36: =IF(F36=TRUE,1,0) -> 0 | N36: K<=20 + | O36: 0 | P36: 0 | Q36: 0 | R36: 0
F37: FALSE | I37: 0.0 | M37: =IF(F37=TRUE,1,0) -> 0 | N37: K<=20 + | O37: 0 | P37: 0 | Q37: 0 | R37: 0
F38: FALSE | H38: =IF(OR(G38="",F38=FALSE),"",HLOOKUP(N38,$AE$1:$AI$9,9,1)*E38) ->  | M38: 0 | N38: K<=20 + | O38: 0 | P38: 0 | Q38: 0
F39: FALSE | M39: 0 | N39: K<=20 + | O39: 0 | P39: 0 | Q39: 0
F40: FALSE | M40: 0 | N40: K<=20 + | O40: 0 | P40: 0 | Q40: 0
F41: FALSE | H41: =IF(OR(G41="",F41=FALSE),"",HLOOKUP(N41,$AE$1:$AI$9,9,1)*E41) ->  | M41: 0 | N41: K<=20 + | O41: =IF(AND(D41>1.5,M41=1),1,0) -> 0 | P41: 0 | Q41: 0
B42: 2 | C42: Murs extérieurs, façades | F42: FALSE | H42: =IF(OR(G42="",F42=FALSE),"",HLOOKUP(N42,$AE$1:$AI$9,7,1)*E42*(1-O42)) ->  | I42: 0.0 | J42: =SUM(I42:I47) -> 0.0 | K42: 1 | L42: =+K42*J42 -> 0.0 | M42: 0 | N42: =$AF$12&" "&"+"&" "&G42 -> K<=20 + | O42: =IF(AND(D42>0.24,M42=1),1,0) -> 0 | P42: =IF(D42="",0,IF(OR(D42>6,D42<0.1),1,0)) -> 0 | Q42: 0 | R42: =E42*(1-O42)*M42 -> 0
F43: FALSE | H43: =IF(OR(G43="",F43=FALSE),"",HLOOKUP(N43,$AE$1:$AI$9,7,1)*E43*(1-O43)) ->  | I43: 0.0 | M43: 0 | N43: K<=20 + | O43: 0 | P43: =IF(D43="",0,IF(OR(D43>6,D43<0.1),1,0)) -> 0 | Q43: 0 | R43: =E43*(1-O43)*M43 -> 0
F44: FALSE | I44: =D44*E44 -> 0.0 | M44: 0 | N44: K<=20 + | O44: 0 | P44: 0 | Q44: 0 | R44: 0
A45: 8 | F45: FALSE | I45: =D45*E45 -> 0.0 | M45: 0 | N45: K<=20 + | O45: 0 | P45: 0 | Q45: 0 | R45: 0
F46: FALSE | I46: 0.0 | M46: 0 | N46: K<=20 + | O46: 0 | P46: 0 | Q46: 0 | R46: 0 | V46: isolation sarking avec isolant non biosourcé
F47: FALSE | H47: =IF(OR(G47="",F47=FALSE),"",HLOOKUP(N47,$AE$1:$AI$9,7,1)*E47*(1-O47)) ->  | I47: 0.0 | M47: 0 | N47: K<=20 + | O47: 0 | P47: 0 | Q47: 0 | R47: 0 | V47: isolation sarking avec isolant biosourcé
B48: 3 | C48: Toitures plates | F48: FALSE | H48: =IF(OR(G48="",F48=FALSE),"",HLOOKUP(N48,$AE$1:$AI$9,6,1)*E48*(1-O48)) ->  | I48: 0.0 | J48: =SUM(I48:I51) -> 0.0 | K48: 1 | L48: =+K48*J48 -> 0.0 | M48: 0 | N48: K<=20 + | O48: 0 | P48: 0 | Q48: 0 | R48: 0 | V48: isolation dans la structure avec isolant biosourcé
F49: FALSE | H49: =IF(OR(G49="",F49=FALSE),"",HLOOKUP(N49,$AE$1:$AI$9,6,1)*E49*(1-O49)) ->  | I49: 0.0 | M49: 0 | N49: K<=20 + | O49: 0 | P49: 0 | Q49: 0 | R49: 0
F50: FALSE | I50: =D50*E50 -> 0.0 | M50: 0 | N50: K<=20 + | O50: 0 | P50: 0 | Q50: 0 | R50: 0
F51: FALSE | I51: 0.0 | M51: 0 | N51: K<=20 + | O51: 0 | P51: 0 | Q51: 0 | R51: 0 | V51: isolation dans la structure avec isolant non biosourcé
B52: 4 | C52: Toitures inclinées qui restera non isolées après travaux | I52: 0.0 | J52: =SUM(I52:I55) -> 0.0 | K52: 1 | L52: =+K52*J52 -> 0.0 | O52: 0 | P52: 0 | Q52: 0 | R52: 0
I53: 0.0 | O53: 0 | P53: 0 | Q53: 0 | R53: 0
I54: 0.0 | O54: 0 | P54: 0 | Q54: 0 | R54: 0
I55: =D55*E55 -> 0.0 | O55: 0 | P55: =IF(D55="",0,IF(OR(D55>6,D55<0.1),1,0)) -> 0 | Q55: 0 | R55: 0
B56: 5 | C56: Toitures inclinées : isolation dans la structure | F56: FALSE | H56: =IF(OR(G56="",F56=FALSE),"",HLOOKUP(N56,$AE$1:$AI$9,4,1)*E56*(1-O56)) ->  | I56: =D56*E56 -> 0.0 | J56: =SUM(I56:I59) -> 0.0 | K56: 1 | L56: =+K56*J56 -> 0.0 | M56: 0 | N56: K<=20 + | O56: 0 | P56: 0 | Q56: 0 | R56: 0
F57: FALSE | H57: =IF(OR(G57="",F57=FALSE),"",HLOOKUP(N57,$AE$1:$AI$9,4,1)*E57*(1-O57)) ->  | I57: 0.0 | M57: 0 | N57: K<=20 + | O57: 0 | P57: 0 | Q57: 0 | R57: 0
F58: FALSE | I58: 0.0 | M58: =IF(F58=TRUE,1,0) -> 0 | N58: K<=20 + | O58: 0 | P58: 0 | Q58: 0 | R58: 0
F59: FALSE | I59: =D59*E59 -> 0.0 | M59: 0 | N59: K<=20 + | O59: 0 | P59: 0 | Q59: 0 | R59: 0
B60: 6 | C60: Toitures inclinées : isolation de type Sarking | F60: FALSE | H60: =IF(OR(G60="",F60=FALSE),"",HLOOKUP(N60,$AE$1:$AI$9,5,1)*E60*(1-O60)) ->  | I60: 0.0 | J60: =SUM(I60:I63) -> 0.0 | K60: 1 | L60: =+K60*J60 -> 0.0 | M60: 0 | N60: K<=20 + | O60: 0 | P60: 0 | Q60: 0 | R60: 0
F61: FALSE | H61: =IF(OR(G61="",F61=FALSE),"",HLOOKUP(N61,$AE$1:$AI$9,5,1)*E61*(1-O61)) ->  | I61: 0.0 | M61: 0 | N61: K<=20 + | O61: 0 | P61: 0 | Q61: 0 | R61: 0
F62: FALSE | I62: 0.0 | M62: 0 | N62: K<=20 + | O62: 0 | P62: 0 | Q62: 0 | R62: 0
F63: FALSE | I63: 0.0 | M63: 0 | N63: K<=20 + | O63: 0 | P63: 0 | Q63: 0 | R63: 0
B64: 7 | C64: Plancher des combles | F64: FALSE | H64: =IF(OR(G64="",F64=FALSE),"",HLOOKUP(N64,$AE$1:$AI$9,3,1)*E64*(1-O64)) ->  | I64: 0.0 | J64: =SUM(I64:I67) -> 0.0 | K64: 1 | L64: =+K64*J64 -> 0.0 | M64: 0 | N64: K<=20 + | O64: 0 | P64: 0 | Q64: 0 | R64: 0
F65: FALSE | H65: =IF(OR(G65="",F65=FALSE),"",HLOOKUP(N65,$AE$1:$AI$9,3,1)*E65*(1-O65)) ->  | I65: 0.0 | M65: 0 | N65: K<=20 + | O65: 0 | P65: 0 | Q65: 0 | R65: 0
F66: FALSE | I66: 0.0 | M66: 0 | N66: K<=20 + | O66: 0 | P66: 0 | Q66: 0 | R66: 0 | AF66: Catégorie de débit | AG66: =_xlfn.IFS(D129<AE71,AF71,D129<AE72,AF72,D129<AE73,AF73,D129<AE74,AF74,D129<AE75,AF75,D129<AE76,AF76,TRUE,AF77) -> 0-3000 m³/h | AL66: Catégorie de débit | AM66: =_xlfn.IFS(J129<AK71,AL71,J129<AK72,AL72,J129<AK73,AL73,J129<AK74,AL74,J129<AK75,AL75,J129<AK76,AL76,TRUE,AL77) -> 0-3000 m³/h
F67: FALSE | I67: =D67*E67 -> 0.0 | M67: 0 | N67: K<=20 + | O67: 0 | P67: 0 | Q67: 0 | R67: 0 | AF67: niveau K | AG67: =IF($J$124<=20,0.75,0.5) -> 0.75 | AL67: niveau K | AM67: =IF($J$124<=20,0.75,0.5) -> 0.75
B68: 8 | C68: Planchers au-dessus de l'ambiance extérieure | F68: FALSE | H68: =IF(OR(G68="",F68=FALSE),"",HLOOKUP(N68,$AE$1:$AI$9,8,1)*E68*(1-O68)) ->  | I68: 0.0 | J68: =SUM(I68:I71) -> 0.0 | K68: 1 | L68: =+K68*J68 -> 0.0 | M68: 0 | N68: K<=20 + | O68: 0 | P68: 0 | Q68: 0 | R68: 0 | AG68: =VLOOKUP(AG66,AF71:AI77,4,0) -> 1600 | AM68: =VLOOKUP(AM66,AL71:AO77,4,0) -> 15000
F69: FALSE | H69: =IF(OR(G69="",F69=FALSE),"",HLOOKUP(N69,$AE$1:$AI$9,8,1)*E69*(1-O69)) ->  | I69: 0.0 | M69: 0 | N69: K<=20 + | O69: 0 | P69: 0 | Q69: 0 | R69: 0
F70: FALSE | I70: 0.0 | M70: 0 | N70: K<=20 + | O70: 0 | P70: 0 | Q70: 0 | R70: 0 | AF70: groupe ventilation type C | AL70: groupe ventilation type D
F71: FALSE | I71: 0.0 | M71: 0 | N71: K<=20 + | O71: 0 | P71: 0 | Q71: 0 | R71: 0 | AE71: 2999.99 | AF71: 0-3000 m³/h | AG71: =AI71*0.75 -> 1,200 € | AH71: =AI71*0.5 -> 800 € | AI71: 1600.00 | AK71: 2999.99 | AL71: 0-3000 m³/h | AM71: =AO71*0.75 -> 11,250 € | AN71: =AO71*0.5 -> 7,500 € | AO71: 15000.00
B72: 9 | C72: Planchers au-dessus d'espaces voisins non à l'abri du gel (vide sanitaire) | F72: FALSE | H72: =IF(OR(G72="",F72=FALSE),"",HLOOKUP(N72,$AE$1:$AI$9,8,1)*E72*(1-O72)) ->  | I72: 0.0 | J72: =SUM(I72:I75) -> 0.0 | K72: 1 | L72: =+K72*J72 -> 0.0 | M72: =IF(F72=TRUE,1,0) -> 0 | N72: K<=20 + | O72: 0 | P72: 0 | Q72: 0 | R72: 0 | AE72: 5000.99 | AF72: 3000-5000 m³/h | AG72: 1,425 € | AH72: 950 € | AI72: 1900.00 | AK72: 5000.99 | AL72: 3000-5000 m³/h | AM72: =AO72*0.75 -> 12,900 € | AN72: =AO72*0.5 -> 8,600 € | AO72: 17200.00
F73: FALSE | H73: =IF(OR(G73="",F73=FALSE),"",HLOOKUP(N73,$AE$1:$AI$9,8,1)*E73*(1-O73)) ->  | I73: 0.0 | M73: =IF(F73=TRUE,1,0) -> 0 | N73: K<=20 + | O73: 0 | P73: 0 | Q73: 0 | R73: 0 | AE73: 10000.99 | AF73: 5000-10000 m³/h | AG73: 2,888 € | AH73: 1,925 € | AI73: 3850.00 | AK73: 10000.99 | AL73: 5000-10000 m³/h | AM73: 16,650 € | AN73: 11,100 € | AO73: 22200.00
F74: FALSE | I74: 0.0 | M74: 0 | N74: K<=20 + | O74: 0 | P74: 0 | Q74: 0 | R74: 0 | AE74: 15000.99 | AF74: 10000-15000 m³/h | AG74: 3,038 € | AH74: 2,025 € | AI74: 4050.00 | AK74: 15000.99 | AL74: 10000-15000 m³/h | AM74: 23,063 € | AN74: 15,375 € | AO74: 30750.00
F75: FALSE | I75: 0.0 | M75: 0 | N75: K<=20 + | O75: 0 | P75: 0 | Q75: 0 | R75: 0 | AE75: 20000.99 | AF75: 15000-20000 m³/h | AG75: 3,225 € | AH75: 2,150 € | AI75: 4300.00 | AK75: 20000.99 | AL75: 15000-20000 m³/h | AM75: 46,350 € | AN75: 30,900 € | AO75: 61800.00
B76: 10 | C76: Planchers au-dessus d'espaces voisins à l'abri du gel (caves) | F76: FALSE | H76: =IF(OR(G76="",F76=FALSE),"",HLOOKUP(N76,$AE$1:$AI$9,8,1)*E76*(1-O76)) ->  | I76: 0.0 | J76: =SUM(I76:I79) -> 0.0 | K76: 1.00 | L76: =+K76*J76 -> 0.0 | M76: 0 | N76: K<=20 + | O76: 0 | P76: 0 | Q76: 0 | R76: 0 | AE76: 25000.99 | AF76: 20000-25000 m³/h | AG76: 3,675 € | AH76: 2,450 € | AI76: 4900.00 | AK76: 25000.99 | AL76: 20000-25000 m³/h | AM76: 54,000 € | AN76: 36,000 € | AO76: 72000.00
F77: FALSE | H77: =IF(OR(G77="",F77=FALSE),"",HLOOKUP(N77,$AE$1:$AI$9,8,1)*E77*(1-O77)) ->  | I77: 0.0 | M77: 0 | N77: K<=20 + | O77: 0 | P77: 0 | Q77: 0 | R77: 0 | AE77: 999999 | AF77: 25000-30000 m³/h | AG77: 4,350 € | AH77: 2,900 € | AI77: 5800.00 | AK77: 999999 | AL77: 25000-30000 m³/h | AM77: 69,188 € | AN77: 46,125 € | AO77: 92250.00
F78: FALSE | I78: 0.0 | M78: 0 | N78: K<=20 + | O78: 0 | P78: 0 | Q78: 0 | R78: 0
F79: FALSE | H79: =IF(OR(G79="",F79=FALSE),"",HLOOKUP(N79,$AE$1:$AI$9,8,1)*E79*(1-O79)) ->  | I79: 0.0 | M79: 0 | N79: K<=20 + | O79: 0 | P79: 0 | Q79: 0 | R79: 0
B80: 11 | C80: Planchers sur le sol | F80: FALSE | H80: =IF(OR(G80="",F80=FALSE),"",HLOOKUP(N80,$AE$1:$AI$9,8,1)*E80*(1-O80)) ->  | I80: 0.0 | J80: =SUM(I80:I83) -> 0.0 | K80: 1.00 | L80: =+K80*J80 -> 0.0 | M80: 0 | N80: K<=20 + | O80: 0 | P80: 0 | Q80: 0 | R80: 0
F81: FALSE | H81: =IF(OR(G81="",F81=FALSE),"",HLOOKUP(N81,$AE$1:$AI$9,8,1)*E81*(1-O81)) ->  | I81: 0.0 | M81: 0 | N81: K<=20 + | O81: 0 | P81: 0 | Q81: 0 | R81: 0
F82: FALSE | I82: 0.0 | M82: 0 | N82: K<=20 + | O82: 0 | P82: 0 | Q82: 0 | R82: 0
F83: FALSE | I83: 0.0 | M83: 0 | N83: K<=20 + | O83: 0 | P83: 0 | Q83: 0 | R83: 0
B84: 12 | C84: Murs extérieurs en contact avec le sol (murs enterrés), un vide sanitaire ou une cave | F84: FALSE | H84: =IF(OR(G84="",F84=FALSE),"",HLOOKUP(N84,$AE$1:$AI$9,7,1)*E84*(1-O84)) ->  | I84: 0.0 | J84: =SUM(I84:I87) -> 0.0 | K84: 1.00 | L84: =+K84*J84 -> 0.0 | M84: 0 | N84: K<=20 + | O84: 0 | P84: 0 | Q84: 0 | R84: 0
F85: FALSE | H85: =IF(OR(G85="",F85=FALSE),"",HLOOKUP(N85,$AE$1:$AI$9,7,1)*E85*(1-O85)) ->  | I85: 0.0 | M85: 0 | N85: K<=20 + | O85: 0 | P85: 0 | Q85: 0 | R85: 0
F86: FALSE | I86: =D86*E86 -> 0.0 | M86: =IF(F86=TRUE,1,0) -> 0 | N86: K<=20 + | O86: 0 | P86: 0 | Q86: 0 | R86: 0
F87: FALSE | H87: =IF(OR(G87="",F87=FALSE),"",HLOOKUP(N87,$AE$1:$AI$9,7,1)*E87*(1-O87)) ->  | I87: 0.0 | M87: =IF(F87=TRUE,1,0) -> 0 | N87: K<=20 + | O87: 0 | P87: 0 | Q87: 0 | R87: 0
F88: FALSE | I88: 0.0 | J88: =+I89+I88 -> 0.0 | K88: 1 | L88: =+K88*J88 -> 0.0 | M88: 0 | N88: K<=20 + | P88: 0 | Q88: 0
F89: FALSE | I89: 0.0 | M89: 0 | N89: K<=20 + | P89: 0 | Q89: 0
F90: FALSE | I90: 0.0 | J90: =+I90+I91+I92+I93 -> 0.0 | K90: 0.67 | L90: =+K90*J90 -> 0.0 | M90: 0 | N90: K<=20 + | P90: 0 | Q90: 0
F91: FALSE | I91: 0.0 | M91: 0 | N91: K<=20 + | P91: 0 | Q91: 0
F92: FALSE | I92: 0.0 | M92: 0 | N92: K<=20 + | P92: 0 | Q92: 0
F93: FALSE | I93: 0.0 | M93: 0 | N93: K<=20 + | P93: 0 | Q93: 0
B94: 13 | C94: TOTAUX (superficie de déperdition) | D94: At = S Aj = | E94: =SUM(E33:E37,E42:E87) -> 0.0 | K94: S aj . Uj .Aj = | L94: =SUM(L33:L93) -> 0.0
C95: Surfaces modifiées | E95: =SUM(R33:R37,R42:R87) -> 0.0 | F95: =IF(AND(E95<E94*0.25,J124>20),1,0) -> 0.0
O96: vérification encodage | P96: =IF(SUM(P104:P107)>=1,1,0) -> 1
O104: les châssis | P104: =IF(OR(D33:D37<>0),0,1) -> 1 | R104: =IF(P104=1,O104,"") -> les châssis | S104: =IF(AND(P104=1,OR(P105:P107=1)),",","") -> ,
B105: 14 | C105: NŒUDS CONSTRUCTIFS | O105: les murs | P105: =IF(OR(D42:D47,D84:D87<>0),0,1) -> 1 | Q105: =IF(AND(P105=1,P104=1),",","") -> , | R105: =IF(P105=1,O105,"") -> les murs | S105: =IF(AND(P105=1,OR(P106:P107=1)),",","") -> , | V105: PEB conforme
C106: Valeur par défaut : | D106: oui | M106: =IF(AND(D106="non",COUNTA(D111:E114)=0),1,0) -> 0 | O106: le toit | P106: =IF(OR(D48:D51,D56:D67<>0),0,1) -> 1 | Q106: =IF(AND(P106=1,OR(P104:P105=1)),",","") -> , | R106: le toit | S106: =IF(AND(P106=1,P107=1),",","") -> , | V106: PEB non conforme
C107: Nœuds PEB conformes : | D107: non | O107: le sol | P107: =IF(OR(D68:D83<>0),0,1) -> 1 | Q107: =IF(AND(P107=1,OR(P104:P106=1)),",","") -> , | R107: le sol
O108: =R104&S104&Q105&R105&S105&Q106&R106&S106&Q107&R107 -> les châssis,,les murs,,le toit,,le sol
O109: =SUBSTITUTE(O108,",,",", ") -> les châssis, les murs, le toit, le sol
D110: Ψlj [W/(m.K)] | E110: lj [m] | F110: Ψlj . lj [W/K] | G110: S Ψlj . lj [W/K]
B111: 15 | C111: Suivant les définitions de la NBN 62-002 | F111: =D111*E111 -> 0.0 | G111: =+F111+F112+F113+F114 -> 0.0
F112: =D112*E112 -> 0.0
F113: =D113*E113 -> 0.0
F114: =D114*E114 -> 0.0
B116: 16 | C116: DEPERDITION THERMIQUE DE LA SUPERFICIE DE DEPERDITION | D116: S aj . Uj .Aj + S Ψlj . Lj = | J116: =IF(OR(D106="oui",D106=""),L94,G111+L94) -> 0.0 | L116: W/K
B117: 17 | C117: COEFFICIENT MOYEN DE TRANSMISSION THERMIQUE | D117: Um = | J117: =+IF(E94=0,0,J116/E94) -> 0.0 | L117: W/m².K
B118: 18 | C118: VOLUME PROTEGE DU BATIMENT | D118: V = | L118: m³
B119: 19 | C119: COMPACITE VOLUMIQUE DU BATIMENT | D119: V/At = | J119: =+IF(E94=0,0,J118/E94) -> 0.0 | L119: m | M119: =IF(OR(J119<0.5,J119>5), 1,0) -> 1
B120: 18. | C120: NIVEAU D'ISOLATION THERMIQUE GLOBALE DU BATIMENT | D120: Si V/At < 1 : Um x 100 = K... | J120: =+IF(J119<1.0001,J117*100," ") -> 0
D121: Si 1 < V/At < 4 : Um x 300/(V/At +2) = K… | J121: =+IF(J119<1," ",IF(J119>4," ",J117*300/(J119+2))) -> 
D122: Si V/At > 4 : Um x 50 = K… | J122: =IF(J119>3.9999,J117*50," ") -> 
D123: NIVEAU K : | J123: =IF(J120<>" ",ROUND(J120,2),IF(J121<>" ",ROUND(J121,2),IF(J122<>" ",ROUND(J122,2),0))) -> 0
B124: 20 | C124: NIVEAU D'ISOLATION THERMIQUE GLOBALE DU BATIMENT | D124: K = | J124: =IF(OR(J123=0,J118=""),0,IF(D106="non",J123,IF(AND(D106="oui",D107="oui"),J123+3,IF(AND(D106="oui",D107="non"),J123+10,0)))) -> 0.00
C128: Placement d'un groupe de ventilation de type C | G128: Placement d'un groupe de ventilation de type D
C130: Montant de subvention total (€) | G130: Montant de subvention total (€) | M130: =IF(AND(OR(D130<>0,J130<>0),SUM(H33:H87)=0),1,0) -> 0
B142: 2° | C142: Calcul du montant de subvention
B148: =B151*B152*B154 -> 1 | C148: Problèmes :
B150: =IF(C150="",1,0) -> 1
B151: =IF(C151="",1,0) -> 1
B152: 1
B154: 1
C159: Avertissements :
C171: Montant total de subvention pour le remplacement des châssis : | D171: 0.00 € | F171: =SUM(H33:H41) -> 0.0
C172: Montant total de subvention pour l'isolation du toit : | D172: 0.00 € | F172: =SUM(H48:H67) -> 0.00
C173: Montant total de subvention pour l'isolation des murs : | D173: 0.00 € | F173: =SUM(H42:H47,H84:H87) -> 0.00
C174: Montant total de subvention pour l'isolation des sols : | D174: 0.00 € | F174: =SUM(H68:H83) -> 0.00
C175: Montant total de subvention pour le placement d'une ventilation : | D175: 0.00 € | F175: =D130+J130 -> 0
C177: Montant total de subvention | D177: 0.00 €
B183: 3° | C183: Encodage des consommations de chauffage des 3 dernières années
M185: fuel | N185: l
C186: Année | D186: Relevé | F186: Unité | G186: Combustible | M186: gaz naturel | N186: m³
C187: 2018 | M187: électricité | N187: kWh
C188: 2019 | M188: butane | N188: kg
C189: 2020 | M189: propane
M190: pellets
M191: bois
M192: charbon
M193: autre
B196: 4° | C196: Eventuelles remarques sur les valeurs encodées :

Sheet Ventilation
C20: Placement de système de ventilation de type C
C21: Débit (m³/h) | D21: Nombre de groupe | E21: Montant de subvention
C22: Moins de 3000 | E22: =IF(OR(D22=0,D22=""),"",ROUND($AG$67*AI71,0)*D22) -> 
C23: 3000-5000
C24: 5001-10000
C25: 10001-15000
C26: 15001-2000
C27: 20001-25000
C28: Plus de 25000
C50: Placement de système de ventilation de type D
C51: Débit (m³/h) | D51: Nombre de groupe | E51: Montant de subvention
C52: Moins de 3000 | E52: =IF(OR(D52=0,D52=""),"",ROUND($AM$67*AO71,0)*Ventilation!D52) -> 
C53: 3000-5000 | E53: =IF(OR(D53=0,D53=""),"",ROUND($AM$67*AO72,0)*Ventilation!D53) -> 
C54: 5001-10000 | E54: =IF(OR(D54=0,D54=""),"",ROUND($AM$67*AO73,0)*Ventilation!D54) -> 
C55: 10001-15000 | E55: =IF(OR(D55=0,D55=""),"",ROUND($AM$67*AO74,0)*Ventilation!D55) -> 
C56: 15001-2000 | E56: =IF(OR(D56=0,D56=""),"",ROUND($AM$67*AO75,0)*Ventilation!D56) -> 
C57: 20001-25000 | E57: =IF(OR(D57=0,D57=""),"",ROUND($AM$67*AO76,0)*Ventilation!D57) -> 
C58: Plus de 25000 | E58: =IF(OR(D58=0,D58=""),"",ROUND($AM$67*AO77,0)*Ventilation!D58) -> 
AF66: Catégorie de débit | AL66: Catégorie de débit
AF67: niveau K | AG67: =IF('Calcul du K'!J124<=20,0.75,0.5) -> 0.75 | AL67: niveau K | AM67: =IF('Calcul du K'!J124<=20,0.75,0.5) -> 0.75
AF70: groupe ventilation type C | AL70: groupe ventilation type D
AE71: 2999.99 | AF71: 0-3000 m³/h | AG71: =AI71*0.75 -> 1,200 € | AH71: =AI71*0.5 -> 800 € | AI71: 1600.00 | AK71: 2999.99 | AL71: 0-3000 m³/h | AM71: =AO71*0.75 -> 11,250 € | AN71: =AO71*0.5 -> 7,500 € | AO71: 15000.00
AE72: 5000.99 | AF72: 3000-5000 m³/h | AG72: 1,425 € | AH72: 950 € | AI72: 1900.00 | AK72: 5000.99 | AL72: 3000-5000 m³/h | AM72: =AO72*0.75 -> 12,900 € | AN72: =AO72*0.5 -> 8,600 € | AO72: 17200.00
AE73: 10000.99 | AF73: 5000-10000 m³/h | AG73: 2,888 € | AH73: 1,925 € | AI73: 3850.00 | AK73: 10000.99 | AL73: 5000-10000 m³/h | AM73: 16,650 € | AN73: 11,100 € | AO73: 22200.00
AE74: 15000.99 | AF74: 10000-15000 m³/h | AG74: 3,038 € | AH74: 2,025 € | AI74: 4050.00 | AK74: 15000.99 | AL74: 10000-15000 m³/h | AM74: 23,063 € | AN74: 15,375 € | AO74: 30750.00
AE75: 20000.99 | AF75: 15000-20000 m³/h | AG75: 3,225 € | AH75: 2,150 € | AI75: 4300.00 | AK75: 20000.99 | AL75: 15000-20000 m³/h | AM75: 46,350 € | AN75: 30,900 € | AO75: 61800.00
AE76: 25000.99 | AF76: 20000-25000 m³/h | AG76: 3,675 € | AH76: 2,450 € | AI76: 4900.00 | AK76: 25000.99 | AL76: 20000-25000 m³/h | AM76: 54,000 € | AN76: 36,000 € | AO76: 72000.00
AE77: 999999 | AF77: 25000-30000 m³/h | AG77: 4,350 € | AH77: 2,900 € | AI77: 5800.00 | AK77: 999999 | AL77: 25000-30000 m³/h | AM77: 69,188 € | AN77: 46,125 € | AO77: 92250.00

Sheet Parois moyennes
B2: Parois non modifiées | H2: Parois modifiées
B5: Parois | C5: Uj [W/(m².K)] | D5: Aj [m²] | H5: Parois | I5: Uj [W/(m².K)] | J5: Aj [m²]
B47: Paroi équivalente | C47: =IF(D47="","",SUMPRODUCT(C6:C45,D6:D45)/D47) ->  | D47: =IF(SUM(D6:D45)=0,"",SUM(D6:D45)) ->  | H47: Paroi équivalente | I47: =IF(J47="","",SUMPRODUCT(I6:I45,J6:J45)/J47) ->  | J47: =IF(SUM(J6:J45)=0,"",SUM(J6:J45)) -> 
B65: Parois non modifiées | H65: Parois modifiées
B68: Parois | C68: Uj [W/(m².K)] | D68: Aj [m²] | H68: Parois | I68: Uj [W/(m².K)] | J68: Aj [m²]
B95: Paroi équivalente | C95: =IF(D95="","",SUMPRODUCT(C69:C93,D69:D93)/D95) ->  | D95: =IF(SUM(D69:D93)=0,"",SUM(D69:D93)) ->  | H95: Paroi équivalente | I95: =IF(J95="","",SUMPRODUCT(I69:I93,J69:J93)/J95) ->  | J95: =IF(SUM(J69:J93)=0,"",SUM(J69:J93)) -> 
B115: Parois non modifiées | H115: Parois modifiées
B118: Parois | C118: Uj [W/(m².K)] | D118: Aj [m²] | H118: Parois | I118: Uj [W/(m².K)] | J118: Aj [m²]
B145: Paroi équivalente | C145: =IF(D145="","",SUMPRODUCT(C119:C143,D119:D143)/D145) ->  | D145: =IF(SUM(D119:D143)=0,"",SUM(D119:D143)) ->  | H145: Paroi équivalente | I145: =IF(J145="","",SUMPRODUCT(I119:I143,J119:J143)/J145) ->  | J145: =IF(SUM(J119:J143)=0,"",SUM(J119:J143)) -> 
B165: Parois non modifiées
B168: Parois | C168: Uj [W/(m².K)] | D168: Aj [m²]
B195: Paroi équivalente | C195: =IF(D195="","",SUMPRODUCT(C169:C193,D169:D193)/D195) ->  | D195: =IF(SUM(D169:D193)=0,"",SUM(D169:D193)) -> 
B215: Parois modifiées
B218: Parois | C218: Uj [W/(m².K)] | D218: Aj [m²]
B245: Paroi équivalente | C245: =IF(D245="","",SUMPRODUCT(C219:C243,D219:D243)/D245) ->  | D245: =IF(SUM(D219:D243)=0,"",SUM(D219:D243)) -> 
B265: Parois modifiées
B268: Parois | C268: Uj [W/(m².K)] | D268: Aj [m²]
B295: Paroi équivalente | C295: =IF(D295="","",SUMPRODUCT(C269:C293,D269:D293)/D295) ->  | D295: =IF(SUM(D269:D293)=0,"",SUM(D269:D293)) -> 
B315: Parois non modifiées | H315: Parois modifiées
B318: Parois | C318: Uj [W/(m².K)] | D318: Aj [m²] | H318: Parois | I318: Uj [W/(m².K)] | J318: Aj [m²]
B345: Paroi équivalente | C345: =IF(D345="","",SUMPRODUCT(C319:C343,D319:D343)/D345) ->  | D345: =IF(SUM(D319:D343)=0,"",SUM(D319:D343)) ->  | H345: Paroi équivalente | I345: =IF(J345="","",SUMPRODUCT(I319:I343,J319:J343)/J345) ->  | J345: =IF(SUM(J319:J343)=0,"",SUM(J319:J343)) -> 
B365: Parois non modifiées | H365: Parois modifiées
B368: Parois | C368: Uj [W/(m².K)] | D368: Aj [m²] | H368: Parois | I368: Uj [W/(m².K)] | J368: Aj [m²]
B395: Paroi équivalente | C395: =IF(D395="","",SUMPRODUCT(C369:C393,D369:D393)/D395) ->  | D395: =IF(SUM(D369:D393)=0,"",SUM(D369:D393)) ->  | H395: Paroi équivalente | I395: =IF(J395="","",SUMPRODUCT(I369:I393,J369:J393)/J395) ->  | J395: =IF(SUM(J369:J393)=0,"",SUM(J369:J393)) -> 
B415: Parois non modifiées | H415: Parois modifiées
B418: Parois | C418: Uj [W/(m².K)] | D418: Aj [m²] | H418: Parois | I418: Uj [W/(m².K)] | J418: Aj [m²]
B445: Paroi équivalente | C445: =IF(D445="","",SUMPRODUCT(C419:C443,D419:D443)/D445) ->  | D445: =IF(SUM(D419:D443)=0,"",SUM(D419:D443)) ->  | H445: Paroi équivalente | I445: =IF(J445="","",SUMPRODUCT(I419:I443,J419:J443)/J445) ->  | J445: =IF(SUM(J419:J443)=0,"",SUM(J419:J443)) -> 
B465: Parois non modifiées | H465: Parois modifiées
B468: Parois | C468: Uj [W/(m².K)] | D468: Aj [m²] | H468: Parois | I468: Uj [W/(m².K)] | J468: Aj [m²]
B495: Paroi équivalente | C495: =IF(D495="","",SUMPRODUCT(C469:C493,D469:D493)/D495) ->  | D495: =IF(SUM(D469:D493)=0,"",SUM(D469:D493)) ->  | H495: Paroi équivalente | I495: =IF(J495="","",SUMPRODUCT(I469:I493,J469:J493)/J495) ->  | J495: =IF(SUM(J469:J493)=0,"",SUM(J469:J493)) -> 
B515: Parois non modifiées | H515: Parois modifiées
B518: Parois | C518: Uj [W/(m².K)] | D518: Aj [m²] | H518: Parois | I518: Uj [W/(m².K)] | J518: Aj [m²]
B545: Paroi équivalente | C545: =IF(D545="","",SUMPRODUCT(C519:C543,D519:D543)/D545) ->  | D545: =IF(SUM(D519:D543)=0,"",SUM(D519:D543)) ->  | H545: Paroi équivalente | I545: =IF(J545="","",SUMPRODUCT(I519:I543,J519:J543)/J545) ->  | J545: =IF(SUM(J519:J543)=0,"",SUM(J519:J543)) -> 
B565: Parois non modifiées | H565: Parois modifiées
B568: Parois | C568: Uj [W/(m².K)] | D568: Aj [m²] | H568: Parois | I568: Uj [W/(m².K)] | J568: Aj [m²]
B595: Paroi équivalente | C595: =IF(D595="","",SUMPRODUCT(C569:C593,D569:D593)/D595) ->  | D595: =IF(SUM(D569:D593)=0,"",SUM(D569:D593)) ->  | H595: Paroi équivalente | I595: =IF(J595="","",SUMPRODUCT(I569:I593,J569:J593)/J595) ->  | J595: =IF(SUM(J569:J593)=0,"",SUM(J569:J593)) -> 

Sheet Parois types
B3: Attention, les valeurs reprises ci-dessous sont indicatives. Elles varient en fonction des
B4: matériaux utilisés réellement dans la composition de chaque paroi.
B8: Type de paroi | C8: Coefficient kj (ou U)
B10: Fenétre avec simple vitrage | C10: 6 | D10: W/m²K
B11: Fenêtre avec double vitrage traditionnel | C11: 3 | D11: W/m²K
B12: Fenêtre avec double vitrage HR | C12: 1.5 | D12: W/m²K
B13: Fenêtre avec triple vitrage | C13: 0.8 | D13: W/m²K
B15: Porte en bois | C15: 2.5 | D15: W/m²K
B16: Porte en aluminium isolé | C16: 1.5 | D16: W/m²K
B18: Mur plein de 29 cm | C18: 2.2 | D18: W/m²K
B19: Mur plein de 39 cm | C19: 1.8 | D19: W/m²K
B20: Mur creux non isolé | C20: 1.7 | D20: W/m²K
B21: Mur creux isolé existant | C21: 0.45 | D21: W/m²K
B22: Mur plein bardé non isolé | C22: 1.8 | D22: W/m²K
B23: Mur plein bardé isolé existant | C23: 0.5 | D23: W/m²K
B24: Mur de pierre non isolé de 30 cm | C24: =ROUND(1/(0.17+0.3/3.49),1) -> 3.9 | D24: W/m²K
B25: Mur de pierre non isolé de 40 cm | C25: =ROUND(1/(0.17+0.4/3.49),1) -> 3.5 | D25: W/m²K
B26: Mur de pierre non isolé de 50 cm | C26: =ROUND(1/(0.17+0.5/3.49),1) -> 3.2 | D26: W/m²K
B27: Mur de pierre non isolé de 60 cm | C27: =ROUND(1/(0.17+0.6/3.49),1) -> 2.9 | D27: W/m²K
B28: Mur de béton cellulaire de 25 cm (collé) | C28: =ROUND(1/(0.17+0.25/0.19),1) -> 0.7 | D28: W/m²K
B29: Mur de béton cellulaire de 30 cm (collé) | C29: =ROUND(1/(0.17+0.3/0.19),1) -> 0.6 | D29: W/m²K
B30: Mur de béton cellulaire de 35 cm (collé) | C30: =ROUND(1/(0.17+0.35/0.19),1) -> 0.5 | D30: W/m²K
B31: Mur aux normes PEB 2015 | C31: 0.24 | D31: W/m²K
B32: Mur "passif" | C32: 0.15 | D32: W/m²K
B34: Toiture plate en béton non isolée | C34: 2.8 | D34: W/m²K
B35: Toiture plate en béton isolée existante | C35: 0.45 | D35: W/m²K
B36: Toiture inclinée isolée (6 cm de laine) | C36: 0.6 | D36: W/m²K
B37: Toiture inclinée isolée (8 cm de laine) | C37: 0.45 | D37: W/m²K
B38: Toiture inclinée isolée (10 cm de laine) | C38: 0.37 | D38: W/m²K
B39: Toiture aux normes PEB 2015 | C39: 0.24 | D39: W/m²K
B40: Toiture "passive" | C40: 0.1 | D40: W/m²K
B41: Plancher en bois de combles inoccupés non isolé | C41: 1.7 | D41: W/m²K
B42: Plancher en bois de combles inoccupés isolé existant | C42: 0.4 | D42: W/m²K
B43: Plancher en béton de combles inoccupés non isolé | C43: 2.6 | D43: W/m²K
B44: Plancher en béton de combles inoccupés isolé existant | C44: 0.4 | D44: W/m²K
B46: Plancher sur cave en béton non isolé | C46: 2 | D46: W/m²K
B47: Plancher sur sol en béton non isolé | C47: 3.2 | D47: W/m²K
B48: Plancher sur cave en béton isolé existant | C48: 0.7 | D48: W/m²K
B49: Plancher sur sol en béton isolé existant | C49: 0.9 | D49: W/m²K
B50: Plancher sur cave aux normes PEB 2015 | C50: 0.3 | D50: W/m²K
B51: Plancher sur sol aux normes PEB 2015 | C51: 0.3 | D51: W/m²K
B52: Plancher "passif" | C52: 0.15 | D52: W/m²K
C55: Pour imprimer cette feuille sur votre
C56: imprimante par défaut, cliquez ici :
